fUSD/lending_fUSD_20251212
["ID","MTS","AMOUNT","RATE_DAILY","PERIOD"]
[398376295,1765559407764,-1000.0,0.00039452,30]
[398376298,1765559407835,-819.85,0.00039452,30]
[398376299,1765559407904,-500.0,0.00039452,30]
[398376300,1765559407974,-500.0,0.00039452,30]
[398376301,1765559408045,-276.64507264,0.00039452,30]
[398376302,1765559408117,-589.28,0.00039452,30]
[398376303,1765559408195,-967.53,0.00039452,30]
[398376304,1765559408271,-500.0,0.00039452,30]
[398376305,1765559408346,-500.0,0.00039452,30]
[398376306,1765559408422,-957.71,0.00039452,30]
[398376307,1765559408505,-500.0,0.00039452,30]
[398376309,1765559408583,-3219.23,0.00039452,30]
[398376310,1765559408660,-500.0,0.00039452,30]
[398376311,1765559408732,-500.0,0.00039452,30]
[398376312,1765559408806,-511.5,0.00039452,30]
[398376313,1765559408884,-4924.5,0.00039452,30]
[398376314,1765559408961,-716.43,0.00039452,30]
[398376315,1765559409041,-500.0,0.00039452,30]
[398376316,1765559409119,-1215.39,0.00039452,30]
[398376317,1765559409195,-504.49,0.00039452,30]
[398376318,1765559409271,-500.0,0.00039452,30]
[398376319,1765559409345,-500.0,0.00039452,30]
[398376320,1765559409419,-665.47,0.00039452,30]
[398376321,1765559409495,-500.0,0.00039452,30]
[398376322,1765559409573,-500.0,0.00039452,30]
[398376323,1765559409651,-500.0,0.00039452,30]
[398376324,1765559409731,-500.0,0.00039452,30]
[398376325,1765559409816,-500.0,0.00039452,30]
[398376326,1765559409900,-526.55,0.00039452,30]
[398376327,1765559409973,-500.0,0.00039452,30]
[398376328,1765559410259,-853.33,0.00039452,30]
[398376329,1765559410331,-501.03012252,0.00039452,30]
[398376330,1765559410403,-592.65,0.00039452,30]
[398376331,1765559410474,-500.0,0.00039452,30]
[398376332,1765559410549,-500.0,0.00039452,30]
[398376333,1765559410633,-1000.0,0.00039452,30]
[398376334,1765559410709,-500.0,0.00039452,30]
[398376335,1765559410783,-500.0,0.00039452,30]
[398376336,1765559410856,-500.0,0.00039452,30]
[398376337,1765559410931,-500.0,0.00039452,30]
[398376338,1765559411006,-1447.73,0.00039452,30]
[398376339,1765559411078,-500.0,0.00039452,30]
[398376340,1765559411158,-708.43,0.00039452,30]
[398376341,1765559411243,-500.0,0.00039452,30]
[398376342,1765559411314,-500.0,0.00039452,30]
[398376343,1765559411403,-500.0,0.00039452,30]
[398376344,1765559411481,-500.0,0.00039452,30]
[398376345,1765559411561,-2113.68,0.00039452,30]
[398376346,1765559411641,-971.96,0.00039452,30]
[398376347,1765559411719,-500.0,0.00039452,30]
[398376348,1765559411794,-500.0,0.00039452,30]
[398376349,1765559411876,-500.0,0.00039452,30]
[398376350,1765559411965,-500.0,0.00039452,30]
[398376351,1765559412036,-500.0,0.00039452,30]
[398376352,1765559412107,-771.89,0.00039452,30]
[398376353,1765559412180,-971.45,0.00039452,30]
[398376354,1765559412259,-500.0,0.00039452,30]
[398376355,1765559412336,-500.0,0.00039452,30]
[398376356,1765559412413,-889.28,0.00039452,30]
[398376357,1765559412487,-1055.35,0.00039452,30]
[398376358,1765559412562,-500.0,0.00039452,30]
[398376359,1765559412637,-768.16,0.00039452,30]
[398376360,1765559412711,-796.43,0.00039452,30]
[398376361,1765559412799,-500.0,0.00039452,30]
[398376362,1765559412880,-500.0,0.00039452,30]
[398376363,1765559412970,-500.0,0.00039452,30]
[398376364,1765559413055,-500.0,0.00039452,30]
[398376365,1765559413135,-500.0,0.00039452,30]
[398376366,1765559413213,-4057.42,0.00039452,30]
[398376367,1765559413287,-519.19,0.00039452,30]
[398376368,1765559413372,-500.0,0.00039452,30]
[398376369,1765559413446,-614.09,0.00039452,30]
[398376370,1765559413534,-636.1347746,0.00039452,30]
[398376371,1765559413614,-500.0,0.00039452,30]
[398376372,1765559413686,-500.0,0.00039452,30]
[398376373,1765559413762,-1274.5,0.00039452,30]
[398376374,1765559413834,-667.67,0.00039452,30]
[398376375,1765559413905,-500.0,0.00039452,30]
[398376376,1765559413984,-500.0,0.00039452,30]
[398376377,1765559414058,-522.58548621,0.00039452,30]
[398376378,1765559414132,-1168.93,0.00039452,30]
[398376379,1765559414214,-500.0,0.00039452,30]
[398376380,1765559414288,-199.66119476,0.00039452,30]
[398376381,1765559414365,-500.0,0.00039452,30]
[398376382,1765559414440,-500.0,0.00039452,30]
[398376383,1765559414515,-500.0,0.00039452,30]
[398376384,1765559414605,-500.0,0.00039452,30]
[398376385,1765559414693,-535.37,0.00039452,30]
[398376386,1765559414766,-3450.96,0.00039452,120]
[398376387,1765559414837,-500.0,0.00039452,30]
[398376388,1765559414909,-486.04398236,0.00039452,30]
[398376389,1765559414983,-500.0,0.00039452,30]
[398376390,1765559415058,-1327.99,0.00039452,30]
[398376391,1765559415132,-500.0,0.00039452,30]
[398376392,1765559415205,-500.0,0.00039452,30]
[398376393,1765559415278,-500.0,0.00039452,30]
[398376394,1765559415367,-500.0,0.00039452,30]
[398376395,1765559415450,-500.0,0.00039452,30]
[398376396,1765559415523,-500.0,0.00039452,30]
[398376397,1765559415603,-500.0,0.00039452,30]
[398376398,1765559415680,-1465.36,0.00039452,30]
[398376399,1765559415752,-599.01,0.00039452,30]
[398376400,1765559415828,-500.0,0.00039452,30]
[398376401,1765559415901,-500.0,0.00039452,30]
[398376402,1765559415976,-2472.22,0.00039452,30]
[398376403,1765559416051,-500.0,0.00039452,30]
[398376404,1765559416132,-500.0,0.00039452,30]
[398376405,1765559416207,-500.0,0.00039452,30]
[398376406,1765559416290,-500.0,0.00039452,30]
[398376407,1765559416363,-518.51,0.00039452,30]
[398376408,1765559416437,-500.0,0.00039452,30]
[398376409,1765559416511,-1876.56,0.00039452,30]
[398376410,1765559416583,-985.25,0.00039452,30]
[398376411,1765559416653,-500.0,0.00039452,30]
[398376412,1765559416723,-2000.0,0.000395,39]
[398376413,1765559416792,-570.75,0.00039685,30]
[398376414,1765559416875,-570.75,0.00039685,30]
[398376415,1765559416965,-500.0,0.00039726,120]
[398376416,1765559417050,-500.0,0.00039726,30]
[398376417,1765559417133,-621.981678,0.00039726,30]
[398376418,1765559417206,-1302.622781,0.00039726,30]
[398376419,1765559417280,-152.513699,0.00039726,30]
[398376420,1765559417353,-1178.321875,0.00039726,30]
[398376421,1765559417424,-218.449425,0.00039726,30]
[398376422,1765559417764,-655.348273,0.00039726,30]
[398376423,1765559417839,-642.74978672,0.00039726,30]
[398376424,1765559417906,-500.0,0.00039726,30]
[398376425,1765559417975,-500.0,0.00039726,30]
[398376426,1765559418047,-500.0,0.00039726,30]
[398376427,1765559418116,-500.0,0.00039726,30]
[398376428,1765559418187,-500.0,0.00039726,30]
[398376429,1765559418256,-644.97,0.00039726,30]
[398376430,1765559418327,-500.0,0.00039726,30]
[398376431,1765559418396,-553.81,0.00039726,30]
[398376432,1765559418468,-507.31,0.00039726,30]
[398376433,1765559418538,-500.0,0.00039726,30]
[398376434,1765559418607,-606.03471425,0.00039726,30]
[398376435,1765559418683,-500.0,0.00039726,30]
[398376436,1765559418758,-500.0,0.00039726,30]
[398376437,1765559418832,-500.0,0.00039726,30]
[398376438,1765559418904,-573.01,0.00039726,30]
[398376439,1765559418980,-500.0,0.00039726,30]
[398376440,1765559419057,-500.0,0.00039726,30]
[398376441,1765559419132,-500.0,0.00039726,30]
[398376442,1765559419211,-500.0,0.00039726,30]
[398376443,1765559419296,-568.24,0.00039726,30]
[398376444,1765559419388,-500.0,0.00039726,30]
[398376445,1765559419463,-500.0,0.00039726,30]
[398376446,1765559419533,-500.0,0.00039726,30]
[398376447,1765559419602,-500.0,0.00039726,30]
[398376448,1765559419674,-500.0,0.00039726,30]
[398376449,1765559419741,-500.0,0.00039726,30]
[398376450,1765559419815,-519.58,0.00039726,30]
[398376451,1765559419888,-500.0,0.00039726,30]
[398376452,1765559419965,-500.0,0.00039726,30]
[398376453,1765559420039,-500.0,0.00039726,30]
[398376454,1765559420119,-500.0,0.00039726,30]
[398376455,1765559420190,-500.0,0.00039726,30]
[398376456,1765559420261,-500.0,0.00039726,30]
[398376457,1765559420338,-662.58,0.00039726,30]
[398376458,1765559420409,-500.0,0.00039726,30]
[398376459,1765559420479,-541.03,0.00039726,30]
[398376460,1765559420549,-500.0,0.00039726,30]
[398376461,1765559420622,-500.0,0.00039726,30]
[398376462,1765559420690,-500.0,0.00039726,30]
[398376463,1765559420759,-500.0,0.00039726,30]
[398376464,1765559420826,-500.0,0.00039726,30]
[398376465,1765559420897,-542.23,0.00039726,30]
[398376466,1765559420966,-500.0,0.00039726,30]
[398376467,1765559421037,-500.0,0.00039726,30]
[398376468,1765559421107,-500.0,0.00039726,30]
[398376469,1765559421186,-500.0,0.00039726,30]
[398376470,1765559421255,-624.71,0.00039726,30]
[398376471,1765559421325,-500.0,0.00039726,30]
[398376472,1765559421411,-500.0,0.00039726,30]
[398376473,1765559421491,-500.0,0.00039726,30]
[398376474,1765559421562,-500.0,0.00039726,30]
[398376475,1765559421632,-500.0,0.00039726,30]
[398376476,1765559421702,-500.0,0.00039726,30]
[398376477,1765559421770,-500.0,0.00039726,30]
[398376478,1765559421837,-500.0,0.00039726,30]
[398376479,1765559421905,-500.0,0.00039726,30]
[398376480,1765559421972,-500.0,0.00039726,30]
[398376481,1765559422047,-500.0,0.00039726,30]
[398376482,1765559422116,-500.0,0.00039726,30]
[398376483,1765559422195,-500.0,0.00039726,30]
[398376484,1765559422272,-500.0,0.00039726,30]
[398376485,1765559422359,-500.0,0.00039726,30]
[398376486,1765559422434,-500.0,0.00039726,30]
[398376487,1765559422507,-500.0,0.00039726,30]
[398376488,1765559422582,-500.0,0.00039726,30]
[398376489,1765559422658,-505.69,0.00039726,30]
[398376490,1765559422727,-500.0,0.00039726,30]
[398376491,1765559422794,-500.0,0.00039726,30]
[398376492,1765559422863,-272.70456296,0.00039726,30]
[398376493,1765559422933,-500.0,0.00039726,30]
[398376494,1765559423002,-500.0,0.00039726,30]
[398376495,1765559423076,-500.0,0.00039726,30]
[398376496,1765559423150,-500.0,0.00039726,30]
[398376497,1765559423221,-500.0,0.00039726,30]
[398376498,1765559423293,-500.0,0.00039726,30]
[398376499,1765559423368,-500.0,0.00039726,30]
[398376500,1765559423443,-500.0,0.00039726,30]
[398376501,1765559423516,-500.0,0.00039726,30]
[398376502,1765559423589,-500.0,0.00039726,30]
[398376503,1765559423678,-1153.52,0.00039726,30]
[398376504,1765559423750,-500.0,0.00039726,30]
[398376505,1765559423825,-347.02892253,0.00039726,30]
[398376506,1765559423903,-854.82,0.00039726,30]
[398376507,1765559423977,-666.07,0.00039726,30]
[398376508,1765559424051,-500.0,0.00039726,30]
[398376509,1765559424124,-500.0,0.00039726,30]
[398376510,1765559424198,-242.49821374,0.00039726,30]
[398376511,1765559424274,-502.66,0.00039726,30]
[398376512,1765559424347,-500.0,0.00039726,30]
[398376513,1765559424433,-500.0,0.00039726,30]
[398376514,1765559424505,-1981.87413775,0.00039726,30]
[398376515,1765559424581,-500.0,0.00039726,30]
[398376516,1765559424656,-500.0,0.00039726,30]
[398376517,1765559424921,-500.0,0.00039726,30]
[398376518,1765559424995,-500.0,0.00039726,30]
[398376519,1765559425068,-500.0,0.00039726,30]
[398376520,1765559425141,-500.0,0.00039726,30]
[398376521,1765559425229,-200.12216932,0.00039726,30]
[398376522,1765559425306,-521.59079359,0.00039726,30]
[398376523,1765559425386,-500.0,0.00039726,30]
[398376524,1765559425462,-500.0,0.00039726,30]
[398376525,1765559425536,-944.86,0.00039726,30]
[398376526,1765559425611,-599.5,0.00039726,30]
[398376527,1765559425683,-500.0,0.00039726,30]
[398376528,1765559425754,-500.0,0.00039726,30]
[398376529,1765559425824,-500.0,0.00039726,30]
[398376530,1765559425900,-500.0,0.00039726,30]
[398376531,1765559425985,-500.0,0.00039726,30]
[398376532,1765559426071,-500.0,0.00039726,30]
[398376533,1765559426149,-651.78,0.00039726,30]
[398376534,1765559426220,-500.0,0.00039726,30]
[398376535,1765559426292,-500.0,0.00039726,30]
[398376536,1765559426365,-500.0,0.00039726,30]
[398376537,1765559426438,-500.0,0.00039726,30]
[398376538,1765559426508,-500.0,0.00039726,30]
[398376539,1765559426580,-500.0,0.00039726,30]
[398376540,1765559426655,-767.46,0.00039726,30]
[398376541,1765559426730,-500.0,0.00039726,30]
[398376542,1765559426809,-500.0,0.00039726,30]
[398376543,1765559426883,-500.0,0.00039726,30]
[398376544,1765559426959,-500.0,0.00039726,30]
[398376545,1765559427032,-500.0,0.00039726,30]
[398376546,1765559427110,-500.0,0.00039726,30]
[398376547,1765559427182,-500.0,0.00039726,30]
[398376548,1765559427252,-500.0,0.00039726,30]
[398376549,1765559427327,-500.0,0.00039726,30]
[398376550,1765559427401,-500.0,0.00039726,30]
[398376551,1765559427473,-500.0,0.00039726,30]
[398376552,1765559427545,-500.0,0.00039726,30]
[398376553,1765559427632,-500.0,0.00039726,30]
[398376554,1765559427705,-500.0,0.00039726,30]
[398376555,1765559427778,-500.0,0.00039726,30]
[398376556,1765559427849,-500.0,0.00039726,30]
[398376557,1765559427918,-500.0,0.00039726,30]
[398376558,1765559427989,-500.0,0.00039726,30]
[398376559,1765559428060,-500.0,0.00039726,30]
[398376560,1765559428136,-500.0,0.00039726,30]
[398376561,1765559428209,-500.0,0.00039726,30]
[398376562,1765559428280,-500.0,0.00039726,30]
[398376563,1765559428356,-500.0,0.00039726,30]
[398376564,1765559428429,-591.97424617,0.00039726,30]
[398376565,1765559428501,-871.13,0.00039726,30]
[398376566,1765559428573,-500.0,0.00039726,30]
[398376567,1765559428645,-500.0,0.00039726,30]
[398376568,1765559428715,-500.0,0.00039726,30]
[398376569,1765559428788,-500.0,0.00039726,30]
[398376570,1765559428858,-500.0,0.00039726,30]
[398376571,1765559428928,-500.0,0.00039726,30]
[398376572,1765559428999,-660.76,0.00039726,30]
[398376573,1765559429071,-1294.87,0.00039726,30]
[398376574,1765559429144,-557.11710985,0.00039726,30]
[398376575,1765559429221,-500.0,0.00039726,30]
[398376576,1765559429300,-1208.8,0.00039726,30]
[398376577,1765559429377,-689.89,0.00039726,30]
[398376578,1765559429454,-500.0,0.00039726,30]
[398376579,1765559429531,-500.0,0.00039726,30]
[398376580,1765559429606,-500.0,0.00039726,30]
[398376581,1765559429678,-500.0,0.00039726,30]
[398376582,1765559429757,-500.0,0.00039726,30]
[398376583,1765559429835,-737.43,0.00039726,30]
[398376584,1765559429907,-500.0,0.00039726,30]
[398376585,1765559429983,-515.1,0.00039726,30]
[398376586,1765559430056,-562.24,0.00039726,30]
[398376587,1765559430129,-500.0,0.00039726,30]
[398376588,1765559430202,-500.0,0.00039726,30]
[398376589,1765559430277,-500.0,0.00039726,30]
[398376590,1765559430356,-619.32,0.00039726,30]
[398376591,1765559430427,-500.0,0.00039726,30]
[398376592,1765559430497,-500.0,0.00039726,30]
[398376593,1765559430568,-500.0,0.00039726,30]
[398376594,1765559430639,-500.0,0.00039726,30]
[398376595,1765559430712,-1340.71,0.00039726,30]
[398376596,1765559430784,-500.0,0.00039726,30]
[398376597,1765559430855,-500.0,0.00039726,30]
[398376598,1765559430928,-500.0,0.00039726,30]
[398376599,1765559431000,-313.77987006,0.00039726,30]
[398376600,1765559431072,-592.55,0.00039726,30]
[398376601,1765559431144,-500.0,0.00039726,30]
[398376605,1765559431224,-790.25,0.00039726,30]
[398376609,1765559431295,-772.71,0.00039726,30]
[398376610,1765559431369,-500.0,0.00039726,30]
[398376611,1765559431443,-889.83,0.00039726,30]
[398376612,1765559431513,-656.2,0.00039726,30]
[398376613,1765559431585,-500.0,0.00039726,30]
[398376622,1765559431657,-500.0,0.00039726,30]
[398376624,1765559431727,-592.15,0.00039726,30]
[398376625,1765559431797,-500.0,0.00039726,30]
[398376626,1765559431868,-500.0,0.00039726,30]
[398376627,1765559431953,-500.0,0.00039726,30]
[398376628,1765559432396,-500.0,0.00039726,30]
[398376629,1765559432473,-500.0,0.00039726,30]
[398376630,1765559432549,-500.0,0.00039726,30]
[398376631,1765559432626,-500.0,0.00039726,30]
[398376632,1765559432705,-500.0,0.00039726,30]
[398376633,1765559432781,-500.0,0.00039726,30]
[398376634,1765559432856,-526.55,0.00039726,30]
[398376635,1765559432932,-500.0,0.00039726,30]
[398376636,1765559433007,-500.0,0.00039726,30]
[398376637,1765559433087,-500.0,0.00039726,30]
[398376638,1765559433166,-500.0,0.00039726,30]
[398376639,1765559433242,-1443.54,0.00039726,30]
[398376640,1765559433316,-500.0,0.00039726,30]
[398376641,1765559433392,-500.0,0.00039726,30]
[398376642,1765559433467,-503.16,0.00039726,30]
[398376643,1765559433543,-512.46,0.00039726,30]
[398376644,1765559433617,-500.0,0.00039726,30]
[398376645,1765559433698,-896.59,0.00039726,30]
[398376646,1765559433777,-500.34,0.00039726,30]
[398376647,1765559433849,-1256.23,0.00039726,30]
[398376648,1765559433923,-817.71,0.00039726,30]
[398376649,1765559434004,-756.26,0.00039726,30]
[398376650,1765559434082,-630.17110837,0.00039726,30]
[398376651,1765559434156,-500.0,0.00039726,30]
[398376652,1765559434233,-500.0,0.00039726,30]
[398376653,1765559434316,-597.9,0.00039726,30]
[398376654,1765559434393,-500.0,0.00039726,30]
[398376655,1765559434469,-625.93,0.00039726,30]
[398376656,1765559434542,-500.0,0.00039726,30]
[398376657,1765559434617,-500.0,0.00039726,30]
[398376658,1765559434691,-500.0,0.00039726,30]
[398376659,1765559434765,-500.0,0.00039726,30]
[398376660,1765559434846,-673.07,0.00039726,30]
[398376661,1765559434924,-500.0,0.00039726,30]
[398376662,1765559434999,-748.24,0.00039726,30]
[398376663,1765559435073,-500.0,0.00039726,30]
[398376664,1765559435147,-1096.61,0.00039726,30]
[398376665,1765559435220,-500.0,0.00039726,30]
[398376666,1765559435292,-500.0,0.00039726,30]
[398376667,1765559435384,-500.0,0.00039726,30]
[398376668,1765559435457,-500.0,0.00039726,30]
[398376669,1765559435529,-500.0,0.00039726,30]
[398376670,1765559435602,-500.0,0.00039726,30]
[398376671,1765559435673,-500.0,0.00039726,30]
[398376672,1765559435742,-500.0,0.00039726,30]
[398376673,1765559435812,-831.5,0.00039726,30]
[398376674,1765559435883,-229.78639674,0.00039726,30]
[398376675,1765559435955,-500.0,0.00039726,30]
[398376676,1765559436028,-711.65,0.00039726,30]
[398376677,1765559436100,-500.0,0.00039726,30]
[398376678,1765559436174,-500.0,0.00039726,30]
[398376679,1765559436246,-500.0,0.00039726,30]
[398376680,1765559436318,-532.6869962,0.00039726,30]
[398376681,1765559436391,-613.25,0.00039726,30]
[398376682,1765559436462,-500.0,0.00039726,30]
[398376683,1765559436533,-500.0,0.00039726,30]
[398376684,1765559436605,-500.0,0.00039726,120]
[398376685,1765559436679,-500.0,0.00039726,30]
[398376686,1765559436745,-184.76575229,0.00039726,30]
[398376687,1765559436814,-702.41,0.00039726,30]
[398376688,1765559436893,-500.0,0.00039726,30]
[398376689,1765559436963,-500.0,0.00039726,30]
[398376690,1765559437037,-500.0,0.00039726,30]
[398376691,1765559437109,-500.0,0.00039726,30]
[398376692,1765559437194,-500.0,0.00039726,30]
[398376694,1765559437265,-500.0,0.00039726,30]
[398376695,1765559437353,-500.0,0.00039726,30]
[398376696,1765559437439,-500.0,0.00039726,30]
[398376697,1765559437525,-500.0,0.00039726,30]
[398376698,1765559437615,-500.0,0.00039726,30]
[398376699,1765559437690,-751.53,0.00039726,30]
[398376704,1765559437763,-500.0,0.00039726,30]
[398376711,1765559437839,-500.0,0.00039726,30]
[398376713,1765559437910,-500.0,0.00039726,30]
[398376714,1765559437982,-500.0,0.00039726,30]
[398376715,1765559438054,-500.0,0.00039726,30]
[398376716,1765559438128,-500.0,0.00039726,30]
[398376717,1765559438202,-500.0,0.00039726,30]
[398376718,1765559438275,-500.0,0.00039726,30]
[398376719,1765559438348,-500.0,0.00039726,30]
[398376720,1765559438420,-500.0,0.00039726,30]
[398376721,1765559438493,-500.0,0.00039726,30]
[398376722,1765559438576,-500.0,0.00039726,30]
[398376723,1765559438654,-500.0,0.00039726,30]
[398376724,1765559438724,-500.0,0.00039726,30]
[398376725,1765559438797,-500.0,0.00039726,30]
[398376726,1765559438869,-500.0,0.00039726,30]
[398376727,1765559438944,-500.0,0.00039726,30]
[398376728,1765559439017,-500.0,0.00039726,30]
[398376729,1765559439093,-856.21,0.00039726,30]
[398376730,1765559439170,-500.0,0.00039726,30]
[398376731,1765559439248,-500.0,0.00039726,30]
[398376732,1765559439323,-1298.66,0.00039726,30]
[398376734,1765559439396,-500.0,0.00039726,30]
[398376735,1765559439468,-625.34,0.00039726,30]
[398376736,1765559439792,-605.46,0.00039726,30]
[398376737,1765559439863,-500.0,0.00039726,30]
[398376738,1765559439931,-500.0,0.00039726,30]
[398376740,1765559440013,-2537.52,0.00039726,30]
[398376741,1765559440102,-545.21,0.00039726,30]
[398376742,1765559440191,-500.0,0.00039726,30]
[398376743,1765559440268,-612.3,0.00039726,30]
[398376744,1765559440340,-500.0,0.00039726,30]
[398376745,1765559440413,-500.0,0.00039726,30]
[398376746,1765559440484,-758.93,0.00039726,30]
[398376747,1765559440554,-500.0,0.00039726,30]
[398376748,1765559440625,-500.0,0.00039726,30]
[398376749,1765559440695,-500.0,0.00039726,30]
[398376750,1765559440763,-580.78,0.00039726,30]
[398376751,1765559440835,-500.0,0.00039726,30]
[398376752,1765559440905,-500.0,0.00039726,30]
[398376753,1765559440974,-500.0,0.00039726,30]
[398376754,1765559441045,-500.0,0.00039726,30]
[398376755,1765559441116,-500.0,0.00039726,30]
[398376756,1765559441190,-568.8,0.00039726,30]
[398376757,1765559441263,-500.0,0.00039726,30]
[398376758,1765559441339,-681.75,0.00039726,30]
[398376759,1765559441411,-904.15,0.00039726,30]
[398376760,1765559441490,-521.98,0.00039726,30]
[398376761,1765559441561,-500.0,0.00039726,30]
[398376762,1765559441632,-500.0,0.00039726,30]
[398376763,1765559441701,-500.0,0.00039726,30]
[398376764,1765559441785,-1178.64,0.00039726,30]
[398376765,1765559441857,-500.0,0.00039726,30]
[398376766,1765559441929,-500.0,0.00039726,30]
[398376767,1765559442002,-500.0,0.00039726,30]
[398376768,1765559442073,-987.42,0.00039726,30]
[398376769,1765559442142,-500.0,0.00039726,30]
[398376773,1765559442219,-688.42,0.00039726,30]
[398376774,1765559442290,-500.0,0.00039726,30]
[398376775,1765559442376,-591.37,0.00039726,30]
[398376776,1765559442462,-500.0,0.00039726,30]
[398376777,1765559442533,-500.0,0.00039726,30]
[398376778,1765559442609,-500.0,0.00039726,30]
[398376779,1765559442682,-518.77,0.00039726,30]
[398376780,1765559442755,-1073.23,0.00039726,30]
[398376782,1765559442826,-500.0,0.00039726,30]
[398376786,1765559442899,-500.0,0.00039726,30]
[398376787,1765559442973,-500.0,0.00039726,30]
[398376789,1765559443044,-1014.08,0.00039726,30]
[398376790,1765559443113,-500.0,0.00039726,30]
[398376791,1765559443182,-500.0,0.00039726,30]
[398376792,1765559443249,-500.0,0.00039726,30]
[398376793,1765559443319,-152.4,0.00039726,30]
[398376794,1765559443389,-1249.97,0.00039726,30]
[398376795,1765559443461,-500.0,0.00039726,30]
[398376796,1765559443535,-500.0,0.00039726,30]
[398376797,1765559443610,-500.0,0.00039726,30]
[398376798,1765559443683,-500.0,0.00039726,30]
[398376799,1765559443754,-613.74,0.00039726,30]
[398376800,1765559443825,-952.07,0.00039726,30]
[398376801,1765559443896,-500.0,0.00039726,30]
[398376802,1765559443971,-612.16,0.00039726,30]
[398376803,1765559444045,-854.34,0.00039726,30]
[398376804,1765559444119,-363.54,0.00039726,30]
[398376805,1765559444197,-500.0,0.00039726,30]
[398376806,1765559444267,-627.56,0.00039726,30]
[398376807,1765559444341,-500.0,0.00039726,30]
[398376808,1765559444413,-500.0,0.00039726,30]
[398376809,1765559444485,-895.82,0.00039726,30]
[398376810,1765559444556,-500.0,0.00039726,30]
[398376811,1765559444629,-500.0,0.00039726,30]
[398376812,1765559444700,-500.0,0.00039726,30]
[398376813,1765559444771,-970.02,0.00039726,30]
[398376814,1765559444845,-500.0,0.00039726,30]
[398376815,1765559444917,-531.18,0.00039726,30]
[398376816,1765559444991,-666.87,0.00039726,30]
[398376817,1765559445077,-579.42,0.00039726,30]
[398376818,1765559445158,-500.0,0.00039726,30]
[398376820,1765559445254,-500.0,0.00039726,30]
[398376822,1765559445330,-500.0,0.00039726,30]
[398376823,1765559445408,-710.84,0.00039726,30]
[398376824,1765559445484,-825.13,0.00039726,30]
[398376825,1765559445558,-500.0,0.00039726,30]
[398376826,1765559445631,-500.0,0.00039726,30]
[398376827,1765559445705,-500.0,0.00039726,30]
[398376828,1765559445785,-500.0,0.00039726,30]
[398376830,1765559445860,-542.08,0.00039726,30]
[398376831,1765559445940,-500.0,0.00039726,30]
[398376840,1765559446023,-500.0,0.00039726,30]
[398376848,1765559446098,-713.89,0.00039726,30]
[398376856,1765559446169,-791.45,0.00039726,30]
[398376864,1765559446239,-500.0,0.00039726,30]
[398376873,1765559446308,-500.0,0.00039726,30]
[398376880,1765559446376,-1029.59,0.00039726,30]